Cogmind - Beta 13 @@@ ROGUE MODE // 2024.04.30 @ 21:22:29 Player: Mxykikker Result: Destroyed by G-47 Trooper with Particle Gun Performance ------------- Evolutions (2) 1000 Regions Visited (5) 1000 Robots Destroyed (123) 615 Value Destroyed (2671) 2671 Prototype IDs (11) 220 Alien Tech Used (0) 0 Bonus (91) 91 TOTAL SCORE: 5597 Bonus ------- High Alert Combat Kills 85 Follower Combat Kills 151 Friendly Fire -145 Cogmind --------- Core Integrity 0/550 Matter 286/300 Energy 99/100 System Corruption 7% Temperature Cool (9) Movement Core (50) Location -8/Materials Parts ------- > --- POWER (1) -------- (None) > --- PROPULSION (3) --- (None) > --- UTILITY (5) ------ Advanced Targeting Computer Melee Analysis Suite Hacking Suite Hacking Suite > --- WEAPON (2) ------- Makeshift Axe > --- INVENTORY (5) ---- Sensor Array ECM Suite Improved Datajack Improved Datajack Plasma Cutter Peak State ------------ > --- POWER ------------ Light Nuclear Core > --- PROPULSION ------- Medium Treads Medium Treads Medium Treads > --- UTILITY ---------- Huge Storage Unit Advanced Targeting Computer Advanced Targeting Computer Hacking Suite Hacking Suite > --- WEAPON ----------- Heavy EM Shotgun Ion Cannon > --- INVENTORY -------- Medium Treads Hover Unit Improved Hover Unit Improved Hover Unit Sensor Array Signal Interpreter ECM Suite System Shield Particle Gun Rocket Launcher Datajack Datajack Mining Laser Plasma Cutter Makeshift Axe [Rating: 37] Favorites ----------- Power Heavy Ion Engine Engine Heavy Ion Engine Power Core Light Nuclear Core Propulsion Wheel Treads Medium Treads Wheel Wheel Hover Unit Improved Hover Unit Flight Unit Improved Flight Unit Utility Improved Targeting Computer Device Cooling System Storage Huge Storage Unit Processor Improved Targeting Computer Hackware Hacking Suite Weapon Flak Cannon Energy Gun Spread Laser Energy Cannon Ion Cannon Ballistic Cannon Flak Cannon Launcher Grenade Launcher Slashing Weapon Makeshift Axe Build | -11 -10 -10 -9 -9 -8 ------- Run | Yrd Mat Min Mat Min Mat Slots Evolved 4 | . . . 2 . 2 Power . | . . . . . . Propulsion 1 | . . . . . 1 Utility 3 | . . . 2 . 1 Weapon . | . . . . . . Parts Attached 91 | 6 21 1 28 4 31 Power 13 | 1 3 . 4 . 5 Engine 10 | 1 3 . 4 . 2 Core 3 | . . . . . 3 Reactor . | . . . . . . Propulsion 37 | 2 7 . 12 3 13 Treads 5 | . . . 2 . 3 Leg . | . . . . . . Wheel 27 | 2 7 . 9 3 6 Hover 4 | . . . . . 4 Flight 1 | . . . 1 . . Utility 14 | 1 2 . 4 1 6 Device 1 | . 1 . . . . Storage 3 | 1 1 . 1 . . Processor 7 | . . . 3 . 4 Hackware 3 | . . . . 1 2 Protection . | . . . . . . Artifact . | . . . . . . Weapon 27 | 2 9 1 8 . 7 Energy Gun 12 | 2 5 1 1 . 3 Energy Cannon 4 | . 3 . . . 1 Ballistic Gun . | . . . . . . Ballistic Cannon 6 | . . . 6 . . Launcher 4 | . 1 . 1 . 2 Special Weapon . | . . . . . . Impact Weapon . | . . . . . . Slashing Weapon 1 | . . . . . 1 Piercing Weapon . | . . . . . . Special Melee Weapon . | . . . . . . Unidentified Prototypes 3 | . . . 2 . 1 Corrupted Parts 1 | . . . . . 1 System Corruption 7 | . . . . . 7 Parts Lost 33 | . . 5 6 . 22 Power 5 | . . 1 1 . 3 Propulsion 13 | . . 2 2 . 9 Utility 4 | . . . 1 . 3 Weapon 11 | . . 2 2 . 7 Highest Loss Streak 6 | . . 5 2 . 6 To Critical Strikes . | . . . . . . Average Slot Usage (%) 93 | . 92 93 94 95 90 Engine 8 | . 13 12 10 11 3 Core 1 | . . . . . 3 Treads 6 | . . . 1 . 17 Wheel 16 | . 27 25 19 22 4 Device 2 | . 7 14 . . . Storage 10 | . 14 14 11 11 8 Processor 18 | . . . 29 22 17 Hackware 7 | . . . . 6 18 Energy Gun 7 | . 24 26 1 . 6 Energy Cannon 1 | . 3 . . . 3 Ballistic Cannon 10 | . . . 19 22 1 Naked Turns . | . . . . . . Heaviest Build 100 | 13 23 23 100 100 100 Greatest Support 84 | 20 20 20 20 20 84 Greatest Overweight (x) 9 | . 2 4 9 4 4 Average Overweight (x) 1 | . . 1 2 4 1 Largest Inventory Capacity 25 | 8 10 10 25 25 25 Average Capacity 17 | 7 9 10 14 25 22 Most Carried 16 | . 10 10 15 15 16 Average Carried 10 | . 6 9 10 12 12 Final Capacity 25 | 8 10 10 25 25 5 Final Carried 15 | . 10 9 15 15 5 Class Distribution -------------------- 68% | Mutant 26% | Hacker-Mutant 5% | Scavenger-Mutant Dominant Class ---------------- Mutant | -10/Materials Mutant | -10/Mines Mutant | -9/Materials Mutant | -9/Mines Hacker-Mutant | -8/Materials Resources | -11 -10 -10 -9 -9 -8 ----------- Run | Yrd Mat Min Mat Min Mat Matter Collected 2485 | 260 230 5 1164 346 480 Remotely . | . . . . . . Salvage Created 3312 | 115 441 45 1336 168 1207 Parts 217 | 7 28 9 92 20 61 Haulers Intercepted 7 | . . . 5 . 2 Recyclers Shooed 7 | . 2 . 3 . 2 Parts Field Recycled . | . . . . . . Retrieved Matter . | . . . . . . Parts Self-Destructed . | . . . . . . Prevented . | . . . . . . Kills | -11 -10 -10 -9 -9 -8 ------- Run | Yrd Mat Min Mat Min Mat Combat Hostiles Destroyed 67 | . 6 2 29 7 23 Melee 7 | . . . . . 7 Guns 13 | . 3 2 . . 8 Cannons 37 | . 1 . 26 7 3 AOE 10 | . 2 . 3 . 5 Classes Destroyed 14 | 2 5 1 5 . 1 Worker 10 | . 2 1 5 2 . Builder 13 | . 2 1 4 2 4 Tunneler 3 | 1 . . . 1 1 Hauler 7 | . . . 5 . 2 Recycler 9 | 1 1 . 4 . 3 Mechanic 1 | . . . 1 . . Operator 5 | . 2 . 2 . 1 Watcher 7 | . 1 . 3 . 3 Swarmer 17 | . . 2 4 6 5 Grunt 36 | . 6 . 14 1 15 Brawler 1 | . . . 1 . . Duelist 2 | . . . 2 . . Sentry 9 | . . . 8 . 1 Hunter 3 | . . . . . 3 Best Kill Streak 13 | 2 3 2 7 4 13 Combat Bots Only 9 | . 2 2 4 4 9 Max Kills in Single Turn 4 | 1 2 1 4 1 3 Gunslinging . | . . . . . . Exploded 3 | . 2 . 3 . 2 Melee 1 | . . . . . 1 Uniques/NPCs Destroyed . | . . . . . . Combat | -11 -10 -10 -9 -9 -8 -------- Run | Yrd Mat Min Mat Min Mat Hostile Shots Fired 380 | . 17 46 97 21 199 Missed 106 | . 4 12 19 3 68 Damage Taken 4118 | . 227 539 902 173 2277 Core 932 | . 67 157 150 7 551 Absorbed by Shields . | . . . . . . Core Remaining (%) 56 | 100 . 10 . 60 . Volleys Fired 199 | 5 33 8 91 15 47 Largest 2 | 2 2 2 2 2 2 Hottest 130 | 80 130 130 130 88 125 Shots Fired 374 | 10 67 15 176 30 76 Gun 124 | 10 61 15 6 . 32 Cannon 233 | . 5 . 165 30 33 Launcher 17 | . 1 . 5 . 11 Special . | . . . . . . Kinetic 221 | . . . 165 30 26 Thermal 103 | 5 44 15 6 . 33 Explosive 17 | . 1 . 5 . 11 Electromagnetic 33 | 5 22 . . . 6 Robot Hit Streak 17 | 3 7 8 17 6 13 Robot Miss Streak 12 | 2 10 10 8 12 9 Penetration Max . | . . . . . . Secondary Targets 3 | . 1 2 . . . Max Gunslinging Chain 1 | . 1 1 . . . Shots Hit Robots 301 | 6 43 13 144 22 73 Core Hits 318 | 3 31 27 154 27 76 Critical Kills . | . . . . . . Critical Parts Destroyed . | . . . . . . Critical Strikes 6 | . . . . . 6 Burn 4 | . . . . . 4 Sever 2 | . . . . . 2 Melee Attacks 30 | . . . . . 30 Impact . | . . . . . . Slashing 30 | . . . . . 30 Piercing . | . . . . . . Sneak Attacks 3 | . . . . . 3 Combat Hostiles . | . . . . . . Follow-up Attacks . | . . . . . . Damage Inflicted 7029 | 72 646 163 2875 389 2884 Guns 1384 | 72 495 163 75 . 579 Cannons 3322 | . 70 . 2440 389 423 Explosions 1549 | . 81 . 360 . 1108 Melee 707 | . . . . . 707 Ramming 67 | . . . . . 67 Kinetic 3134 | . . . 2440 389 305 Thermal 1174 | 22 350 163 75 . 564 Explosive 1519 | . 81 . 360 . 1078 Electromagnetic 428 | 50 215 . . . 163 Impact . | . . . . . . Slashing 707 | . . . . . 707 Piercing . | . . . . . . Highest Corruption 7 | . 1 1 . . 7 Average Corruption 4 | . 1 1 . . 7 Corruption Purged . | . . . . . . Corruption Blocked . | . . . . . . Effects 21 | . 2 1 . . 18 Message Errors 6 | . . 1 . . 5 Matter Fused 6 | . 1 . . . 5 Heat Flow Errors 4 | . . . . . 4 Energy Discharges 2 | . . . . . 2 Data Loss (minor) 1 | . . . . . 1 Misfires 1 | . 1 . . . . Alerts 1 | . . . . . 1 Overload Shots . | . . . . . . Overflow Damage 51 | . . . . 2 49 Projectiles 2 | . . . . 2 . Explosions 36 | . . . . . 36 Melee 13 | . . . . . 13 Knockbacks 94 | . . . 71 13 10 Impact 1 | . . . . . 1 Kinetic 89 | . . . 68 12 9 Secondary 4 | . . . 3 1 . Self-Inflicted Damage 90 | . 28 . . . 62 Shots 3 | . 1 . . . 2 Rammed 10 | . . . . . 10 Targets Rammed 12 | . . . . . 12 Kicked . | . . . . . . Crushed 2 | . . . . . 2 Highest Temperature 311 | 70 96 16 311 93 276 Average Temperature 49 | 38 24 5 53 31 68 Received Heat Transfer 1301 | . 90 80 384 27 720 Effects 1 | . . . . . 1 Energy Bleed 1 | . . . . . 1 Siege Activations . | . . . . . . Robots Corrupted . | . . . . . . Combat Hostiles . | . . . . . . Parts Fried 1 | . . . . . 1 Impact Corruptions . | . . . . . . Robots Melted . | . . . . . . Combat Hostiles . | . . . . . . Parts Melted 3 | . . . . . 3 Heat Transferred 2221 | 50 568 210 85 . 1308 Parts Sabotaged . | . . . . . . Parts Stolen . | . . . . . . Parts Stripped . | . . . . . . Power Chain Reactions 2 | . 1 . . . 1 Alert | -11 -10 -10 -9 -9 -8 ------- Run | Yrd Mat Min Mat Min Mat Peak Influence 556 | 10 174 89 556 293 479 Initial 200 | . 6 23 18 200 55 Average 210 | 3 68 71 276 216 238 Maximum Alert Level 2 | . . . 2 1 2 Low Security (%) 52 | 100 100 100 38 23 50 Level 1 34 | . . . 31 76 38 Level 2 13 | . . . 30 . 11 Level 3 . | . . . . . . Level 4 . | . . . . . . Level 5 . | . . . . . . High Security . | . . . . . . Max Security . | . . . . . . Squads Dispatched 14 | . 3 . 5 . 6 Investigation 7 | . 2 . 3 . 2 Extermination . | . . . . . . Reinforcement 6 | . 1 . 2 . 3 Assault . | . . . . . . Garrison 1 | . . . . . 1 Intercept . | . . . . . . Searches Triggered . | . . . . . . Construction Impeded 1 | . . . . . 1 Haulers Reinforced . | . . . . . . Active Scanning Responses . | . . . . . . Cargo Convoy Interrupts . | . . . . . . Stealth | -11 -10 -10 -9 -9 -8 --------- Run | Yrd Mat Min Mat Min Mat Distress Signals 7 | . 1 . 5 . 1 Communications Jammed . | . . . . . . Distress Signals . | . . . . . . Times Spotted 136 | . 16 22 46 10 42 Peak Tracking Total 13 | . 4 13 5 4 9 Tactical Retreats 11 | . 2 1 4 . 4 Traps | -11 -10 -10 -9 -9 -8 ------- Run | Yrd Mat Min Mat Min Mat Traps Triggered 5 | . 4 . . . 1 Indirectly . | . . . . . . Trap Hack Attempts . | . . . . . . Triggered . | . . . . . . Disarmed . | . . . . . . Reprogrammed 3 | . . . 3 . . Reused 1 | . . . 1 . . Traps Extracted . | . . . . . . Installed . | . . . . . . Triggered 1 | . . . 1 . . Machines | -11 -10 -10 -9 -9 -8 ---------- Run | Yrd Mat Min Mat Min Mat Machines Disabled 2 | . . . 1 . 1 Max in Single Turn 1 | . . . 1 . . Machines Repaired . | . . . . . . Machines Dismantled . | . . . . . . Machines Sabotaged . | . . . . . . Overloaded Fab Kills . | . . . . . . Hacking | -11 -10 -10 -9 -9 -8 --------- Run | Yrd Mat Min Mat Min Mat Machines Accessed 23 | . 6 . 11 . 6 Terminals 16 | . 4 . 7 . 5 Fabricators . | . . . . . . Repair Stations . | . . . . . . Recycling Units 4 | . 2 . 2 . . Scanalyzers 3 | . . . 2 . 1 Garrison Access . | . . . . . . Total Hacks 70 | . 15 . 33 . 22 Successful 48 | . 9 . 22 . 17 Failed 22 | . 6 . 11 . 5 Catastrophic 4 | . 1 . 2 . 1 Database Lockouts . | . . . . . . Manual 13 | . 3 . 4 . 6 Terminals 41 | . 10 . 15 . 16 Fabricators . | . . . . . . Repair Stations . | . . . . . . Recycling Units 10 | . 5 . 5 . . Scanalyzers 19 | . . . 13 . 6 Garrison Access . | . . . . . . Terminal Hacks 23 | . 5 . 8 . 10 Robot Analysis 1 | . . . 1 . . Prototype ID Bank 5 | . 3 . . . 2 Branch Access Points 2 | . . . 1 . 1 Alert Level 4 | . . . 2 . 2 Unreport Threat 2 | . . . 1 . 1 Locate Traps 3 | . . . 1 . 2 Reprogram Traps 1 | . . . 1 . . Assault Status 1 | . . . . . 1 Recall Investigation 1 | . . . . . 1 Hauler Manifests 1 | . 1 . . . . Registered Components 1 | . 1 . . . . Zone Layout 1 | . . . 1 . . Fabricator Hacks . | . . . . . . Repair Station Hacks . | . . . . . . Recycling Unit Hacks 3 | . 2 . 1 . . Report Inventory 3 | . 2 . 1 . . Scanalyzer 17 | . . . 11 . 6 Insert Component 6 | . . . 4 . 2 Analyze 11 | . . . 7 . 4 Garrison Access Hacks . | . . . . . . Unauthorized Hacks 5 | . 2 . 2 . 1 Terminals 1 | . . . . . 1 Botnet 1 | . . . . . 1 Fabricators . | . . . . . . Repair Stations . | . . . . . . Recycling Units 4 | . 2 . 2 . . Tunnel 4 | . 2 . 2 . . Scanalyzers . | . . . . . . Garrison Access . | . . . . . . Data Cores Recovered 1 | . 1 . . . . Used . | . . . . . . Hacking Detections 14 | . 4 . 5 . 5 Full Trace Events 2 | . . . 1 . 1 Feedback Events . | . . . . . . Feedback Blocked . | . . . . . . Robot Schematics Acquired . | . . . . . . Robots Built . | . . . . . . Authchips . | . . . . . . Time . | . . . . . . Total Robot Build Rating . | . . . . . . Part Schematics Acquired 6 | . . . 4 . 2 Parts Built . | . . . . . . Authchips . | . . . . . . Time . | . . . . . . Total Part Build Rating . | . . . . . . Parts Repaired . | . . . . . . Time . | . . . . . . Parts Recycled . | . . . . . . Recycled Matter . | . . . . . . Retrieved Matter . | . . . . . . Retrieved Components . | . . . . . . Parts Scanalyzed 6 | . . . 4 . 2 Part Schematics Acquired 6 | . . . 4 . 2 Parts Damaged . | . . . . . . Bothacking | -11 -10 -10 -9 -9 -8 ------------ Run | Yrd Mat Min Mat Min Mat Used RIF Installer . | . . . . . . Robots Hacked . | . . . . . . Non-combat . | . . . . . . Combat . | . . . . . . Robot Hacks Applied . | . . . . . . Relay Couplers Released . | . . . . . . Fabnet Peak Effective % . | . . . . . . Robots Rewired . | . . . . . . Allies Hacked . | . . . . . . Hacks Repelled . | . . . . . . Allies | -11 -10 -10 -9 -9 -8 -------- Run | Yrd Mat Min Mat Min Mat Total Allies 6 | . . 2 . 4 . Largest Group 4 | . . 2 . 4 4 Highest-Rated Group 71 | . . 47 . 71 71 Highest-Rated Ally 31 | . . 31 . 31 31 Total Orders . | . . . . . . Ally Attacks 57 | . . 13 . 12 32 Total Damage 728 | . . 209 . 141 378 Kills 10 | . . 5 . 3 2 Allies Corrupted 1 | . . 1 . . . Allies Melted . | . . . . . . Intel | -11 -10 -10 -9 -9 -8 ------- Run | Yrd Mat Min Mat Min Mat Robot Analysis Total 1 | . . . 1 . . Derelict Logs Recovered 2 | . . . . 2 . Drone Launches . | . . . . . . Drone Recoveries . | . . . . . . Exploration | -11 -10 -10 -9 -9 -8 ------------- Run | Yrd Mat Min Mat Min Mat Turns Passed 5246 | 83 802 205 1676 812 1668 Spaces Moved 3488 | 75 735 173 1151 537 817 Core 89 | 3 2 5 13 . 66 Treads 442 | . . . . . 442 Legs . | . . . . . . Wheels 2807 | 72 733 168 1138 537 159 Hover 150 | . . . . . 150 Flight . | . . . . . . Fastest Speed 50 | 50 80 95 80 140 50 Average Speed 123 | 78 88 99 113 140 168 Slowest Speed 450 | 80 150 250 450 140 400 Overloaded Moves . | . . . . . . Propulsion Burnouts . | . . . . . . Robots Hopped . | . . . . . . Cave-ins Triggered . | . . . . . . Exploration Rate (%) 58 | 3 77 39 77 94 59 Regions Visited 5 Branch Regions 2 Pre-discovered Areas 4 | . 2 . 2 . . Known Exits Taken 1 | . . . 1 . . Unknown Exits Taken 4 | 1 1 1 . 1 . Scrap Searched 2 | . . 1 . 1 . Spaces Dug 2 | . . . . . 2 Terrain Destroyed 167 | . 5 . 51 . 111 Melee 2 | . . . . . 2 Projectile 2 | . . . . . 2 AOE 163 | . 5 . 51 . 107 Terrain Rammed . | . . . . . . Walls Destroyed . | . . . . . . Machines Disabled . | . . . . . . Actions | -11 -10 -10 -9 -9 -8 --------- Run | Yrd Mat Min Mat Min Mat Total 3996 | 85 818 192 1343 569 989 Wait 79 | . . 9 44 3 23 Move 3483 | 74 734 172 1150 536 817 Hop . | . . . . . . Pick Up 42 | . 13 1 15 5 8 Fast Attach 40 | 6 11 . 10 . 13 Attach 21 | . . 1 7 1 12 Detach 13 | . 4 . 2 . 7 Swap 30 | . 10 . 11 3 6 Drop 47 | . 13 1 13 6 14 Fire 199 | 5 33 8 91 15 47 Melee 30 | . . . . . 30 Ram . | . . . . . . Kick . | . . . . . . Crush 12 | . . . . . 12 Escape Stasis . | . . . . . . Rewire . | . . . . . . Trap . | . . . . . . Miscellaneous . | . . . . . . Route ------- -11/Scrapyard -10/Materials (discovered 5 exits: *Mat x3 / [*Min] / [*Sub]) -10/Mines (discovered 2 exits: *Mat x2) -9/Materials (discovered 4 exits: *Mat x2 / *Min x2) -9/Mines (discovered 4 exits: *Mat x2 / [*Exi] / [*Zio]) -8/Materials (discovered 3 exits: *Fac x3) History --------- Turn | Location | Event 19 | -11/Scrapyard | Discovered new exit (range 16) 84 | -11/Scrapyard | Entered Materials 111 | -10/Materials | Discovered new exit (range 16) 251 | -10/Materials | Discovered new exit (range 10) 309 | -10/Materials | Build established: Mutant 572 | -10/Materials | Discovered new exit (range 15) 599 | -10/Materials | Discovered new exit (range 16) 871 | -10/Materials | Discovered new exit (range 10) 886 | -10/Materials | Entered Mines 900 | -10/Mines | A weapon hastily lodged in a ceiling crevice suddenly fell to the ground 951 | -10/Mines | Discovered new exit (range 15) 1002 | -10/Mines | Assembled infested the area 1049 | -10/Mines | Core integrity fell below 50% 1061 | -10/Mines | Discovered new exit (range 16) 1072 | -10/Mines | Core integrity fell below 20% 1091 | -10/Mines | Entered Materials 1091 | -9/Materials | Evolved 2 slots: Utility x2 1111 | -9/Materials | Lost 5 parts (1p2n2w) 1601 | -9/Materials | Discovered new exit (range 10) 1779 | -9/Materials | Discovered new exit (range 16) 1899 | -9/Materials | Identified exit to Mines 2767 | -9/Materials | Entered Mines 2774 | -9/Mines | Received a Rocket Launcher from a helpful Derelict 2800 | -9/Mines | Assisted by bots powering up and referring to "LRC-V3" 2843 | -9/Mines | Met a Derelict bent on vengeance 2881 | -9/Mines | Learned location of 1 exit from Materials 2900 | -9/Mines | Learned location of 1 exit from Materials 3002 | -9/Mines | A Derelict revealed a hidden shortcut to a safe place 3005 | -9/Mines | Discovered new exit (range 8) 3037 | -9/Mines | Discovered new exit (range 13) 3430 | -9/Mines | Received a Mining Laser from a helpful Derelict 3462 | -9/Mines | Deemed a non-threat by the Exiles lab entrance 3462 | -9/Mines | Discovered new exit (range 5) 3579 | -9/Mines | Entered Materials 3579 | -8/Materials | Accompanied by 4 allies 3579 | -8/Materials | Evolved 2 slots: Propulsion x1, Utility x1 3580 | -8/Materials | Identified exit to Factory 3719 | -8/Materials | Lost 4 allies 3754 | -8/Materials | Destroyed 9 combat bots 3758 | -8/Materials | Lost 6 parts (3n1u2w) 3837 | -8/Materials | Lost 3 parts (1p1n1w) 4227 | -8/Materials | Build established: Hacker-Mutant 4669 | -8/Materials | Core integrity fell below 50% 4875 | -8/Materials | Discovered exit to Factory (range 16) 4922 | -8/Materials | Lost 3 parts (1p1n1w) 5154 | -8/Materials | Garrison activated, responded to threat 5228 | -8/Materials | Lost 5 parts (3n1u1w) 5233 | -8/Materials | Core integrity fell below 20% 5247 | -8/Materials | Destroyed by G-47 Trooper with Particle Gun Last Messages --------------- 05195_ Destroyed Rocket Launcher. 05195_ W-25 Informer destroyed. 05196_ 3OOO=DU&|JVEAJBUA=7Z8,X#WC6TB 05196_ The unstable cave ceiling collapses. 05197_ Imp. Hover Unit destroyed. 05213_ Connecting with Terminal... >>Recall(Investigation) Establishing remote squad link... No tasked investigation squads found. >>Alert(Purge) Purged threat record, alert level lowered. 05220_ Acquired Melee Analysis Suite. 05227_ System corrupted: Matter fused (-9). 05227_ G-47 Trooper destroyed. 05237_ R-06 Scavenger collects Aluminum Leg. 05240_ G-47 Trooper destroyed. 05241_ Imp. Signal Interpreter destroyed. 05243_ R-06 Scavenger collects Aluminum Leg. 05246_ Sneak attack on R-06 Scavenger. 05246_ R-06 Scavenger destroyed. Map ----- +----------------------------------------------------+ | ?????????????????????????????????????????????????? | | ?????????????????????????????????????????????????? | | ?????????????????????????????????????????????????? | | ?????????????????????????????????????????????????? | | ?????????????????????????????????????????????????? | | ?????????????????????????????????????????????????? | | ???????????????????????????????????